fUSD/lending_fUSD_20250301
["ID","MTS","AMOUNT","RATE_DAILY","PERIOD"]
[354935875,1740833440475,-42297.35069782,0.000231,2]
[354935876,1740833440485,-197.69803234,0.00023166,2]
[354935877,1740833440494,-1190.333,0.00023266,2]
[354935878,1740833440504,-2153.409,0.00023266,2]
[354935879,1740833440514,-3926.0,0.00023266,2]
[354935880,1740833440524,-150.0,0.00023266,2]
[354935881,1740833440533,-896.533,0.00023266,2]
[354935882,1740833440543,-163.1,0.00023481,2]
[354935883,1740833440552,-150.0,0.00023543,2]
[354935884,1740833440562,-2482.83930201,0.00023567,2]
[354935885,1740833440571,-5241.66622463,0.00023705,2]
[354935886,1740833440581,-209.74,0.00023836,2]
[354935887,1740833440590,-316.69913072,0.00023838,2]
[354935888,1740833440599,-3573.21621222,0.000239,3]
[354935889,1740833440609,-847.47,0.00023909,2]
[354935890,1740833440618,-1000.0,0.00024542,2]
[354935891,1740833440628,-3573.21621222,0.000249,4]
[354935892,1740833440637,-195.06,0.00025,2]
[354935893,1740833440946,-172.69,0.00025,2]
[354935894,1740833440958,-172.69,0.00025,2]
[354935895,1740833440968,-172.69,0.00025,2]
[354935896,1740833440978,-172.69,0.00025,2]
[354935897,1740833440988,-172.69,0.00025,2]
[354935898,1740833440998,-2482.83930201,0.00025011,2]
[354935899,1740833441008,-300.0,0.000251,2]
[354935900,1740833441018,-5241.66622463,0.00025103,2]
[354935901,1740833441030,-163.1,0.00025271,2]
[354935902,1740833441039,-3573.21621222,0.000259,4]
[354935903,1740833441049,-847.47,0.00026173,2]
[354935904,1740833441059,-1437.894,0.00026266,2]
[354935905,1740833441068,-150.0,0.00026266,2]
[354935906,1740833441078,-508.41461458,0.00026397,2]
[354935907,1740833441088,-2482.83930201,0.00026456,2]
[354935908,1740833441099,-5241.66622463,0.00026502,2]
[354935909,1740833441110,-398.28,0.00026703,2]
[354935910,1740833441119,-172.69,0.0002689,2]
[354935911,1740833441129,-3573.21621222,0.000269,4]
[354935912,1740833441139,-1500.0,0.000269,5]
[354935913,1740833441149,-1000.0,0.00026996,2]
[354935914,1740833441158,-197.69803234,0.00027012,2]
[354935915,1740833441170,-157.5817981,0.00027116,4]
[354935916,1740833441179,-1000.0,0.000273,30]
[354935917,1740833441189,-503.87406352,0.00027373,2]
[354935918,1740833441198,-160.15904,0.00027373,2]
[354935919,1740833441208,-500.0,0.00027373,2]
[354935920,1740833441218,-160.15904,0.00027373,2]
[354935921,1740833441227,-503.4266169,0.00027373,2]
[354935922,1740833441237,-161.48129965,0.00027373,2]
[354935923,1740833441246,-172.69,0.00027387,2]
[354935924,1740833441255,-172.69,0.00027387,2]
[354935925,1740833441265,-172.69,0.00027387,2]
[354935926,1740833441275,-100000.0,0.00027397,7]
[354935927,1740833441285,-500.0,0.00027397,2]
[354935928,1740833441300,-506.71066371,0.00027397,2]
[354935929,1740833441309,-504.8893213,0.00027397,2]
[354935930,1740833441320,-500.0,0.00027397,2]
[354935931,1740833441330,-507.03047586,0.00027397,2]
[354935932,1740833441340,-299.8615219,0.00027397,2]
[354935933,1740833441351,-649.98916388,0.00027397,2]
[354935934,1740833441360,-424.78676118,0.00027397,2]
[354935935,1740833441370,-509.21672374,0.00027397,2]
[354935936,1740833441380,-165.47854032,0.00027397,2]
[354935937,1740833441390,-500.0,0.00027397,2]
[354935938,1740833441400,-500.0,0.00027397,2]
[354935939,1740833441410,-507.18263196,0.00027397,2]
[354935940,1740833441420,-304.86368156,0.00027397,2]
[354935941,1740833441431,-505.55970039,0.00027397,2]
[354935942,1740833441441,-508.65246303,0.00027397,2]
[354935943,1740833441452,-500.0,0.00027397,2]
[354935944,1740833441462,-500.0,0.00027397,2]
[354935945,1740833441471,-500.0,0.00027397,2]
[354935946,1740833441481,-500.0,0.00027397,2]
[354935947,1740833441491,-500.0,0.00027397,2]
[354935948,1740833441501,-500.0,0.00027397,2]
[354935949,1740833441511,-500.0,0.00027397,2]
[354935950,1740833441521,-396.48891798,0.00027397,2]
[354935951,1740833441531,-557.29714284,0.00027397,2]
[354935952,1740833441540,-500.0,0.00027397,2]
[354935953,1740833441550,-500.0,0.00027397,2]
[354935954,1740833441560,-500.0,0.00027397,2]
[354935955,1740833441570,-500.0,0.00027397,2]
[354935956,1740833441580,-500.0,0.00027397,2]
[354935957,1740833441591,-312.24511079,0.00027397,2]
[354935958,1740833441600,-378.19648185,0.00027397,2]
[354935959,1740833441610,-500.0,0.00027397,2]
[354935960,1740833441620,-500.0,0.00027397,2]
[354935961,1740833441630,-500.0,0.00027397,2]
[354935962,1740833441640,-420.32741824,0.00027397,2]
[354935963,1740833441650,-508.14325975,0.00027397,2]
[354935964,1740833441660,-501.2659353,0.00027397,2]
[354935965,1740833441670,-505.59704104,0.00027397,2]
[354935966,1740833441680,-500.0,0.00027397,2]
[354935967,1740833441690,-500.0,0.00027397,2]
[354935968,1740833441700,-500.0,0.00027397,2]
[354935969,1740833441710,-500.0,0.00027397,2]
[354935970,1740833441721,-3425.400033,0.00027397,2]
[354935971,1740833441731,-500.0,0.00027397,2]
[354935972,1740833441742,-500.0,0.00027397,2]
[354935973,1740833441752,-500.0,0.00027397,2]
[354935974,1740833441761,-4441.264064,0.00027397,2]
[354935975,1740833441771,-500.0,0.00027397,2]
[354935976,1740833441781,-500.0,0.00027397,2]
[354935977,1740833441790,-1447.93,0.00027397,2]
[354935978,1740833441800,-153.088695,0.00027397,2]
[354935979,1740833441816,-150.369306,0.00027397,2]
[354935980,1740833441825,-982.1,0.00027397,2]
[354935981,1740833441836,-500.0,0.00027397,2]
[354935982,1740833441845,-820.82,0.00027397,2]
[354935983,1740833441856,-500.0,0.00027397,2]
[354935984,1740833441866,-1053.73,0.00027397,2]
[354935985,1740833441876,-500.0,0.00027397,2]
[354935986,1740833441886,-510.52730917,0.00027397,2]
[354935987,1740833441896,-378.10506109,0.00027397,2]
[354935988,1740833441906,-500.0,0.00027397,2]
[354935989,1740833441919,-500.0,0.00027397,2]
[354935990,1740833441930,-500.0,0.00027397,2]
[354935991,1740833441942,-500.0,0.00027397,2]
[354935992,1740833441954,-500.0,0.00027397,2]
[354935993,1740833441966,-500.0,0.00027397,2]
[354935994,1740833441977,-403.91260397,0.00027397,2]
[354935995,1740833441988,-500.0,0.00027397,2]
[354935996,1740833441998,-500.0,0.00027397,2]
[354935997,1740833442009,-500.0,0.00027397,2]
[354935998,1740833442019,-520.31609077,0.00027397,2]
[354935999,1740833442032,-724.24,0.00027397,2]
[354936000,1740833442043,-507.43387309,0.00027397,2]
[354936001,1740833442054,-500.0,0.00027397,2]
[354936002,1740833442067,-511.59399898,0.00027397,2]
[354936003,1740833442079,-500.0,0.00027397,2]
[354936004,1740833442089,-500.0,0.00027397,2]
[354936005,1740833442100,-500.0,0.00027397,2]
[354936006,1740833442110,-500.0,0.00027397,2]
[354936007,1740833442122,-500.0,0.00027397,2]
[354936008,1740833442132,-500.0,0.00027397,2]
[354936009,1740833442142,-500.0,0.00027397,2]
[354936010,1740833442153,-500.0,0.00027397,2]
[354936011,1740833442163,-253.99746192,0.00027397,2]
[354936012,1740833442174,-500.0,0.00027397,2]
[354936013,1740833442184,-557.85,0.00027397,2]
[354936014,1740833442195,-500.0,0.00027397,2]
[354936015,1740833442205,-506.91338053,0.00027397,2]
[354936016,1740833442215,-500.0,0.00027397,2]
[354936017,1740833442226,-500.0,0.00027397,2]
[354936018,1740833442236,-1000.0,0.00027397,2]
[354936019,1740833442246,-1185.82,0.00027397,2]
[354936021,1740833442257,-500.0,0.00027397,2]
[354936023,1740833442267,-500.0,0.00027397,2]
[354936025,1740833442277,-500.0,0.00027397,2]
[354936026,1740833442287,-500.0,0.00027397,2]
[354936027,1740833442297,-500.0,0.00027397,2]
[354936028,1740833442306,-500.0,0.00027397,2]
[354936029,1740833442319,-500.0,0.00027397,2]
[354936030,1740833442334,-500.0,0.00027397,2]
[354936031,1740833442345,-500.0,0.00027397,2]
[354936032,1740833442355,-514.78787588,0.00027397,2]
[354936033,1740833442365,-500.0,0.00027397,2]
[354936034,1740833442375,-500.0,0.00027397,2]
[354936035,1740833442386,-2045.44229117,0.00027397,4]
[354936036,1740833442396,-509.52399997,0.00027397,2]
[354936037,1740833442407,-500.0,0.00027397,2]
[354936040,1740833442417,-500.0,0.00027397,2]
[354936043,1740833442428,-500.0,0.00027397,2]
[354936045,1740833442437,-500.0,0.00027397,2]
[354936047,1740833442447,-507.84584706,0.00027397,2]
[354936048,1740833442458,-504.79139607,0.00027397,2]
[354936049,1740833442468,-500.0,0.00027397,2]
[354936050,1740833442478,-500.0,0.00027397,2]
[354936051,1740833442489,-1031.83,0.00027397,2]
[354936052,1740833442499,-500.0,0.00027397,2]
[354936053,1740833442509,-500.0,0.00027397,2]
[354936054,1740833442519,-1151.63,0.00027397,2]
[354936055,1740833442529,-500.0,0.00027397,2]
[354936057,1740833442539,-500.0,0.00027397,2]
[354936059,1740833442548,-500.0,0.00027397,2]
[354936060,1740833442560,-500.0,0.00027397,2]
[354936061,1740833442571,-500.0,0.00027397,2]
[354936062,1740833442581,-500.0,0.00027397,2]
[354936063,1740833442591,-500.0,0.00027397,2]
[354936064,1740833442602,-500.0,0.00027397,2]
[354936065,1740833442613,-500.0,0.00027397,2]
[354936066,1740833442622,-500.0,0.00027397,2]
[354936067,1740833442632,-500.0,0.00027397,2]
[354936068,1740833442643,-500.0,0.00027397,2]
[354936069,1740833442653,-512.69495574,0.00027397,2]
[354936070,1740833442663,-500.0,0.00027397,2]
[354936071,1740833442673,-500.0,0.00027397,2]
[354936072,1740833442704,-508.54668647,0.00027397,2]
[354936073,1740833442717,-500.0,0.00027397,2]
[354936074,1740833442727,-500.0,0.00027397,2]
[354936075,1740833442737,-500.0,0.00027397,2]
[354936076,1740833442747,-500.0,0.00027397,2]
[354936077,1740833442758,-1063.67,0.00027397,2]
[354936078,1740833442767,-500.0,0.00027397,2]
[354936079,1740833442777,-500.0,0.00027397,2]
[354936080,1740833442787,-500.0,0.00027397,2]
[354936081,1740833442796,-500.0,0.00027397,2]
[354936082,1740833442806,-708.76,0.00027397,2]
[354936083,1740833442817,-500.0,0.00027397,2]
[354936084,1740833442826,-925.46,0.00027397,2]
[354936085,1740833442836,-500.0,0.00027397,2]
[354936086,1740833442846,-500.0,0.00027397,2]
[354936087,1740833442856,-500.0,0.00027397,2]
[354936088,1740833442866,-500.0,0.00027397,2]
[354936089,1740833442876,-500.0,0.00027397,2]
[354936091,1740833442886,-500.0,0.00027397,2]
[354936093,1740833442895,-500.0,0.00027397,2]
[354936094,1740833442905,-500.0,0.00027397,2]
[354936095,1740833442915,-500.0,0.00027397,2]
[354936096,1740833442925,-500.0,0.00027397,2]
[354936097,1740833442934,-500.0,0.00027397,2]
[354936098,1740833442944,-500.0,0.00027397,2]
[354936099,1740833442954,-1191.51,0.00027397,2]
[354936100,1740833442963,-500.0,0.00027397,2]
[354936101,1740833442973,-500.0,0.00027397,2]
[354936102,1740833442983,-500.0,0.00027397,2]
[354936103,1740833442994,-500.0,0.00027397,2]
[354936104,1740833443004,-500.0,0.00027397,2]
[354936105,1740833443014,-500.0,0.00027397,2]
[354936106,1740833443024,-500.0,0.00027397,2]
[354936107,1740833443038,-500.0,0.00027397,2]
[354936108,1740833443047,-500.0,0.00027397,2]
[354936109,1740833443057,-500.0,0.00027397,2]
[354936110,1740833443068,-899.52,0.00027397,2]
[354936111,1740833443079,-500.0,0.00027397,2]
[354936113,1740833443089,-500.0,0.00027397,2]
[354936115,1740833443099,-500.0,0.00027397,2]
[354936117,1740833443110,-500.0,0.00027397,2]
[354936118,1740833443121,-500.0,0.00027397,2]
[354936119,1740833443131,-500.0,0.00027397,2]
[354936120,1740833443141,-500.0,0.00027397,2]
[354936121,1740833443150,-504.93654903,0.00027397,2]
[354936122,1740833443160,-500.0,0.00027397,2]
[354936123,1740833443170,-500.0,0.00027397,2]
[354936124,1740833443180,-500.0,0.00027397,2]
[354936125,1740833443190,-500.0,0.00027397,2]
[354936126,1740833443202,-500.0,0.00027397,2]
[354936127,1740833443212,-500.0,0.00027397,2]
[354936128,1740833443222,-500.0,0.00027397,2]
[354936129,1740833443232,-500.0,0.00027397,2]
[354936130,1740833443243,-500.0,0.00027397,2]
[354936131,1740833443253,-500.0,0.00027397,2]
[354936132,1740833443263,-500.0,0.00027397,2]
[354936133,1740833443273,-500.0,0.00027397,2]
[354936134,1740833443283,-500.0,0.00027397,2]
[354936135,1740833443293,-500.0,0.00027397,2]
[354936136,1740833443303,-500.0,0.00027397,2]
[354936137,1740833443313,-500.0,0.00027397,2]
[354936138,1740833443323,-500.0,0.00027397,2]
[354936139,1740833443334,-1250.45,0.00027397,2]
[354936140,1740833443344,-500.0,0.00027397,2]
[354936141,1740833443354,-500.0,0.00027397,2]
[354936142,1740833443364,-500.0,0.00027397,2]
[354936143,1740833443374,-500.0,0.00027397,2]
[354936144,1740833443384,-500.0,0.00027397,2]
[354936145,1740833443394,-500.0,0.00027397,2]
[354936146,1740833443404,-500.0,0.00027397,2]
[354936147,1740833443414,-500.0,0.00027397,2]
[354936148,1740833443424,-500.0,0.00027397,2]
[354936149,1740833443433,-510.37703924,0.00027397,2]
[354936150,1740833443444,-500.0,0.00027397,2]
[354936151,1740833443454,-500.0,0.00027397,2]
[354936152,1740833443464,-500.0,0.00027397,2]
[354936153,1740833443474,-500.0,0.00027397,2]
[354936154,1740833443484,-500.0,0.00027397,2]
[354936155,1740833443494,-500.0,0.00027397,2]
[354936156,1740833443504,-1022.37,0.00027397,2]
[354936157,1740833443514,-521.57,0.00027397,2]
[354936158,1740833443525,-500.0,0.00027397,2]
[354936159,1740833443535,-500.0,0.00027397,2]
[354936160,1740833443545,-500.0,0.00027397,2]
[354936161,1740833443555,-500.0,0.00027397,2]
[354936162,1740833443565,-735.55,0.00027397,2]
[354936163,1740833443574,-1202.7,0.00027397,2]
[354936164,1740833443585,-507.55238338,0.00027397,2]
[354936165,1740833443595,-500.0,0.00027397,2]
[354936166,1740833443605,-514.87731879,0.00027397,2]
[354936167,1740833443615,-500.0,0.00027397,2]
[354936168,1740833443626,-500.0,0.00027397,2]
[354936169,1740833443636,-500.0,0.00027397,2]
[354936170,1740833443646,-500.0,0.00027397,2]
[354936171,1740833443657,-500.0,0.00027397,2]
[354936172,1740833443668,-1137.9,0.00027397,2]
[354936173,1740833443678,-500.0,0.00027397,2]
[354936174,1740833443689,-583.2,0.00027397,2]
[354936175,1740833443699,-1350.44,0.00027397,2]
[354936176,1740833443709,-500.0,0.00027397,2]
[354936177,1740833443719,-500.0,0.00027397,2]
[354936178,1740833443729,-970.16,0.00027397,2]
[354936179,1740833443739,-500.0,0.00027397,2]
[354936180,1740833443750,-506.13901556,0.00027397,2]
[354936181,1740833443760,-523.42179422,0.00027397,2]
[354936182,1740833443770,-500.0,0.00027397,2]
[354936183,1740833443780,-877.1,0.00027397,2]
[354936184,1740833443789,-500.0,0.00027397,2]
[354936185,1740833443799,-500.0,0.00027397,2]
[354936186,1740833443808,-500.0,0.00027397,2]
[354936187,1740833443817,-500.0,0.00027397,2]
[354936188,1740833443827,-987.39,0.00027397,2]
[354936189,1740833443836,-500.0,0.00027397,2]
[354936190,1740833443846,-500.0,0.00027397,2]
[354936191,1740833443856,-968.53,0.00027397,2]
[354936192,1740833443872,-500.0,0.00027397,2]
[354936193,1740833443882,-500.0,0.00027397,2]
[354936194,1740833443891,-500.0,0.00027397,2]
[354936195,1740833443902,-500.0,0.00027397,2]
[354936196,1740833443911,-500.0,0.00027397,2]
[354936197,1740833443920,-500.0,0.00027397,2]
[354936198,1740833443930,-510.72844276,0.00027397,2]
[354936199,1740833443940,-500.0,0.00027397,2]
[354936200,1740833443949,-500.0,0.00027397,2]
[354936201,1740833443959,-512.80701254,0.00027397,2]
[354936202,1740833443969,-500.0,0.00027397,2]
[354936203,1740833443978,-500.0,0.00027397,2]
[354936204,1740833443988,-778.74,0.00027397,2]
[354936205,1740833443998,-500.0,0.00027397,2]
[354936206,1740833444009,-500.0,0.00027397,2]
[354936207,1740833444019,-500.0,0.00027397,2]
[354936208,1740833444030,-500.0,0.00027397,2]
[354936209,1740833444224,-544.43426959,0.00027397,2]
[354936210,1740833444235,-500.0,0.00027397,2]
[354936211,1740833444245,-500.0,0.00027397,2]
[354936212,1740833444254,-946.71,0.00027397,2]
[354936213,1740833444264,-500.0,0.00027397,2]
[354936214,1740833444274,-500.0,0.00027397,2]
[354936215,1740833444283,-500.0,0.00027397,2]
[354936216,1740833444293,-1953.53,0.00027397,2]
[354936217,1740833444303,-500.0,0.00027397,2]
[354936218,1740833444322,-500.0,0.00027397,2]
[354936219,1740833444335,-500.0,0.00027397,2]
[354936220,1740833444345,-269.48756521,0.00027397,2]
[354936221,1740833444355,-500.0,0.00027397,2]
[354936222,1740833444365,-552.7405206,0.00027397,2]
[354936223,1740833444375,-534.62,0.00027397,2]
[354936224,1740833444385,-500.0,0.00027397,2]
[354936225,1740833444395,-510.73618053,0.00027397,2]
[354936226,1740833444405,-500.0,0.00027397,2]
[354936227,1740833444415,-500.0,0.00027397,2]
[354936228,1740833444425,-596.97,0.00027397,2]
[354936229,1740833444435,-500.0,0.00027397,2]
[354936230,1740833444447,-500.0,0.00027397,2]
[354936231,1740833444457,-1805.04,0.00027397,2]
[354936232,1740833444467,-500.0,0.00027397,2]
[354936233,1740833444477,-500.0,0.00027397,2]
[354936234,1740833444487,-1359.44,0.00027397,2]
[354936235,1740833444497,-500.0,0.00027397,2]
[354936236,1740833444506,-500.0,0.00027397,2]
[354936237,1740833444516,-500.0,0.00027397,2]
[354936238,1740833444527,-500.0,0.00027397,2]
[354936239,1740833444537,-500.0,0.00027397,2]
[354936240,1740833444547,-1561.8,0.00027397,2]
[354936241,1740833444557,-500.0,0.00027397,2]
[354936242,1740833444567,-1386.95,0.00027397,2]
[354936243,1740833444577,-500.0,0.00027397,2]
[354936244,1740833444588,-500.0,0.00027397,2]
[354936245,1740833444598,-948.59,0.00027397,2]
[354936246,1740833444608,-500.0,0.00027397,2]
[354936247,1740833444619,-500.0,0.00027397,2]
[354936248,1740833444629,-500.0,0.00027397,2]
[354936249,1740833444639,-500.0,0.00027397,2]
[354936250,1740833444648,-605.84,0.00027397,2]
[354936251,1740833444658,-1142.88,0.00027397,2]
[354936252,1740833444668,-500.0,0.00027397,2]
[354936253,1740833444678,-504.76471014,0.00027397,2]
[354936254,1740833444688,-500.0,0.00027397,2]
[354936255,1740833444698,-500.0,0.00027397,2]
[354936256,1740833444708,-500.0,0.00027397,2]
[354936257,1740833444718,-967.24,0.00027397,2]
[354936258,1740833444728,-500.0,0.00027397,2]
[354936259,1740833444737,-500.0,0.00027397,2]
[354936260,1740833444748,-500.0,0.00027397,2]
[354936261,1740833444758,-500.0,0.00027397,2]
[354936262,1740833444768,-1252.34,0.00027397,2]
[354936263,1740833444778,-500.0,0.00027397,2]
[354936264,1740833444787,-500.0,0.00027397,2]
[354936265,1740833444797,-500.0,0.00027397,2]
[354936266,1740833444807,-500.0,0.00027397,2]
[354936267,1740833444817,-504.9601363,0.00027397,2]
[354936268,1740833444834,-511.81966336,0.00027397,2]
[354936269,1740833444844,-885.92,0.00027397,2]
[354936270,1740833444855,-500.0,0.00027397,2]
[354936271,1740833444865,-1282.96,0.00027397,2]
[354936272,1740833444876,-500.0,0.00027397,2]
[354936273,1740833444886,-500.0,0.00027397,2]
[354936274,1740833444897,-500.0,0.00027397,2]
[354936275,1740833444907,-500.0,0.00027397,2]
[354936276,1740833444918,-2011.69,0.00027397,2]
[354936277,1740833444928,-1198.93,0.00027397,2]
[354936278,1740833444938,-500.0,0.00027397,2]
[354936279,1740833444949,-504.73869839,0.00027397,2]
[354936280,1740833444959,-1767.73,0.00027397,2]
[354936281,1740833444969,-358.83001884,0.00027397,2]
[354936282,1740833444979,-500.0,0.00027397,2]
[354936283,1740833444989,-500.0,0.00027397,2]
[354936284,1740833444999,-500.0,0.00027397,2]
[354936285,1740833445009,-1987.47,0.00027397,2]
[354936286,1740833445020,-500.0,0.00027397,2]
[354936287,1740833445032,-500.0,0.00027397,2]
[354936288,1740833445043,-500.0,0.00027397,2]
[354936289,1740833445053,-500.0,0.00027397,2]
[354936290,1740833445063,-500.0,0.00027397,2]
[354936291,1740833445074,-500.0,0.00027397,2]
[354936292,1740833445084,-500.0,0.00027397,2]
[354936293,1740833445094,-500.0,0.00027397,2]
[354936294,1740833445104,-500.0,0.00027397,2]
[354936295,1740833445114,-500.0,0.00027397,2]
[354936296,1740833445125,-500.0,0.00027397,2]
[354936297,1740833445136,-1153.6,0.00027397,2]
[354936298,1740833445146,-500.0,0.00027397,2]
[354936299,1740833445156,-500.0,0.00027397,2]
[354936300,1740833445166,-500.0,0.00027397,2]
[354936301,1740833445176,-500.0,0.00027397,2]
[354936302,1740833445186,-1694.8,0.00027397,2]
[354936303,1740833445196,-505.14902301,0.00027397,2]
[354936304,1740833445206,-976.98,0.00027397,2]
[354936305,1740833445216,-500.0,0.00027397,2]
[354936306,1740833445226,-500.0,0.00027397,2]
[354936307,1740833445236,-500.0,0.00027397,2]
[354936308,1740833445246,-500.0,0.00027397,2]
[354936309,1740833445256,-1162.11,0.00027397,2]
[354936310,1740833445267,-500.0,0.00027397,2]
[354936311,1740833445278,-500.0,0.00027397,2]
[354936313,1740833445289,-500.0,0.00027397,2]
[354936315,1740833445299,-500.0,0.00027397,2]
[354936317,1740833445309,-500.0,0.00027397,2]
[354936319,1740833445321,-500.0,0.00027397,2]
[354936320,1740833445331,-500.0,0.00027397,2]
[354936321,1740833445341,-500.0,0.00027397,2]
[354936322,1740833445352,-1170.95,0.00027397,2]
[354936323,1740833445363,-656.67,0.00027397,2]
[354936324,1740833445374,-500.0,0.00027397,2]
[354936325,1740833445385,-506.47588229,0.00027397,2]
[354936326,1740833445395,-1442.62,0.00027397,2]
[354936327,1740833445406,-1305.02,0.00027397,2]
[354936328,1740833445417,-500.0,0.00027397,2]
[354936329,1740833445427,-500.0,0.00027397,2]
[354936330,1740833445437,-759.84,0.00027397,2]
[354936331,1740833445447,-801.12,0.00027397,2]
[354936332,1740833445457,-500.0,0.00027397,2]
[354936333,1740833445467,-3900.98,0.00027397,2]
[354936334,1740833445477,-500.0,0.00027397,2]
[354936335,1740833445487,-500.0,0.00027397,2]
[354936336,1740833445497,-503.76840615,0.00027397,2]
[354936337,1740833445507,-1200.19,0.00027397,2]
[354936338,1740833445517,-996.06,0.00027397,2]
[354936339,1740833445527,-500.0,0.00027397,2]
[354936340,1740833445537,-504.06648705,0.00027397,2]
[354936341,1740833445546,-1586.79,0.00027397,2]
[354936342,1740833445556,-622.23,0.00027397,2]
[354936343,1740833445566,-548.54271923,0.00027397,2]
[354936344,1740833445579,-500.0,0.00027397,2]
[354936345,1740833445588,-500.0,0.00027397,2]
[354936346,1740833445599,-500.0,0.00027397,2]
[354936347,1740833445608,-969.22,0.00027397,2]
[354936348,1740833445618,-500.0,0.00027397,2]
[354936349,1740833445628,-522.12280498,0.00027397,2]
[354936350,1740833445638,-500.0,0.00027397,2]
[354936351,1740833445649,-1081.43,0.00027397,2]
[354936352,1740833445659,-931.19,0.00027397,2]
[354936353,1740833445668,-1600.74,0.00027397,2]
[354936354,1740833445679,-993.97,0.00027397,2]
[354936355,1740833445688,-500.0,0.00027397,2]
[354936356,1740833445698,-500.0,0.00027397,2]
[354936357,1740833445708,-500.0,0.00027397,2]
[354936358,1740833445718,-1238.65,0.00027397,2]
[354936359,1740833445727,-500.0,0.00027397,2]
[354936360,1740833445737,-754.21,0.00027397,2]
[354936361,1740833445746,-513.44545472,0.00027397,2]
[354936362,1740833445756,-1557.98,0.00027397,2]
[354936363,1740833445766,-510.6404242,0.00027397,2]
[354936364,1740833445776,-853.03,0.00027397,2]
[354936365,1740833445787,-500.0,0.00027397,2]
[354936366,1740833445796,-500.0,0.00027397,2]
[354936367,1740833445807,-500.0,0.00027397,2]
[354936368,1740833445817,-781.14,0.00027397,2]
[354936369,1740833445827,-500.0,0.00027397,2]
[354936370,1740833445837,-500.0,0.00027397,2]
[354936371,1740833445846,-974.9,0.00027397,2]
[354936372,1740833445856,-500.0,0.00027397,2]
[354936373,1740833445866,-500.0,0.00027397,2]
[354936374,1740833445876,-2490.22,0.00027397,2]
[354936375,1740833445886,-508.10876426,0.00027397,2]
[354936376,1740833445896,-500.0,0.00027397,2]
[354936377,1740833445907,-500.0,0.00027397,2]
[354936378,1740833445917,-500.0,0.00027397,2]
[354936379,1740833445926,-508.19389622,0.00027397,2]
[354936380,1740833445936,-500.0,0.00027397,2]
[354936381,1740833445946,-2257.31,0.00027397,2]
[354936382,1740833445956,-500.0,0.00027397,2]
[354936383,1740833445966,-184.3693583,0.00027397,2]
[354936384,1740833445975,-500.0,0.00027397,2]
[354936385,1740833445985,-500.0,0.00027397,2]
[354936386,1740833445995,-500.0,0.00027397,2]
[354936387,1740833446005,-500.0,0.00027397,2]
[354936388,1740833446015,-1102.97,0.00027397,2]
[354936389,1740833446025,-500.0,0.00027397,2]
[354936390,1740833446038,-500.0,0.00027397,2]
[354936391,1740833446048,-500.0,0.00027397,2]
[354936392,1740833446059,-199.41839139,0.00027397,2]
[354936393,1740833446070,-500.0,0.00027397,2]
[354936394,1740833446079,-520.56301999,0.00027397,2]